bitfinex/quotes_SOLUSD_20230116
["timestamp","ask_amount","ask_price","bid_price","bid_amount"]
[1673890837569,194.30042776,23.237,23.181,5.31514003]
[1673890837570,55.98,23.21,23.181,5.31514003]
[1673890837777,23.65,23.21,23.182,17.0]
[1673890838007,23.65,23.21,23.183,25.50898322]
[1673890838320,23.65,23.21,23.185,20.0]
[1673890838513,23.65,23.21,23.186,22.90163293]
[1673890838718,32.32,23.217,23.187,5.12244427]
[1673890838942,23.52,23.22,23.187,5.12244427]
[1673890838943,23.52,23.22,23.189,20.0]
[1673890839156,23.52,23.22,23.19,21.05184701]
[1673890839349,32.32,23.219,23.191,4.15021709]
[1673890839788,32.31,23.226,23.193,6.59755742]
[1673890839981,23.48,23.22,23.194,20.0]
[1673890840196,23.48,23.22,23.195,5.98593983]
[1673890840402,32.32,23.219,23.195,5.98593983]
[1673890840724,20.0,23.229,23.195,5.98593983]
[1673890840725,32.31,23.226,23.198,7.18888599]
[1673890840934,32.3,23.228,23.199,20.0]
[1673890841254,23.65,23.23,23.2,30.89344634]
[1673890841467,32.29,23.237,23.201,22.84230495]
[1673890841677,32.29,23.237,23.202,7.88302152]
[1673890841872,32.29,23.237,23.204,20.0]
[1673890842084,32.29,23.237,23.206,5.51174202]
[1673890842085,23.65,23.23,23.206,5.51174202]
[1673890842503,32.3,23.229,23.205,110.7239]
[1673890842710,23.53,23.22,23.205,110.7239]
[1673890842933,23.53,23.22,23.197,52.35]
[1673890843141,52.32,23.219,23.197,20.0]
[1673890843892,32.32,23.219,23.197,20.0]
[1673890844532,23.53,23.22,23.197,20.0]
[1673890844731,23.65,23.21,23.196,114.4831]
[1673890845055,32.32,23.218,23.196,114.4831]
[1673890845056,32.31,23.226,23.198,7.64390643]
[1673890845369,32.31,23.226,23.199,15.85589628]
[1673890845570,32.3,23.229,23.2,6.73768713]
[1673890845784,20.0,23.228,23.2,6.73768713]
[1673890846101,23.52,23.22,23.201,52.34]
[1673890846308,23.52,23.22,23.201,20.0]
[1673890846519,32.32,23.219,23.197,20.0]
[1673890846841,23.53,23.21,23.194,20.0]
[1673890847254,32.32,23.216,23.194,20.0]
[1673890847467,32.32,23.216,23.196,7.52005073]
[1673890847676,23.52,23.22,23.197,20.0]
[1673890847896,23.52,23.22,23.198,5.22405632]
[1673890848208,32.31,23.223,23.199,24.39600413]
[1673890848421,20.0,23.224,23.199,24.39600413]
[1673890848742,20.0,23.224,23.201,5.84341555]
[1673890848945,52.31,23.224,23.202,37.0]
[1673890849258,23.65,23.22,23.202,37.0]
[1673890849453,23.65,23.22,23.202,17.0]
[1673890849666,23.65,23.22,23.2,17.0]
[1673890849883,20.0,23.218,23.198,38.87848423]
[1673890850113,20.0,23.218,23.195,52.35]
[1673890850293,32.32,23.217,23.195,52.35]
[1673890850504,32.32,23.217,23.195,20.0]
[1673890850832,17.0,23.216,23.192,115.4656]
[1673890851048,23.65,23.21,23.192,115.4656]
[1673890851271,23.65,23.21,23.184,32.37]
[1673890851445,32.33,23.209,23.184,32.37]
[1673890851656,20.0,23.207,23.182,32.37]
[1673890851893,20.0,23.207,23.181,58.96240943]
[1673890852207,32.34,23.206,23.181,26.59240943]
[1673890852387,32.34,23.206,23.184,115.0369]
[1673890852603,32.34,23.206,23.186,20.0]
[1673890852814,37.0,23.216,23.186,20.0]
[1673890852815,32.32,23.215,23.186,20.0]
[1673890853037,32.32,23.215,23.188,4.76772822]
[1673890853238,20.0,23.216,23.188,4.76772822]
[1673890853447,32.32,23.214,23.189,65.21589628]
[1673890853752,20.0,23.209,23.188,32.36]
[1673890853984,20.0,23.209,23.185,32.36]
[1673890854181,20.0,23.209,23.184,115.0369]
[1673890854182,52.33,23.208,23.184,115.0369]
[1673890854391,23.52,23.2,23.185,20.0]
[1673890854825,32.34,23.206,23.185,20.0]
[1673890855024,32.33,23.207,23.186,6.88586189]
[1673890855230,52.33,23.208,23.185,20.0]
[1673890855438,32.34,23.206,23.186,17.0]
[1673890855660,20.0,23.208,23.186,17.0]
[1673890855661,32.33,23.207,23.186,49.36]
[1673890855872,23.65,23.21,23.188,4.44009665]
[1673890856068,23.65,23.21,23.189,17.0]
[1673890856402,32.32,23.215,23.189,49.36]
[1673890856616,32.32,23.215,23.189,65.21589628]
[1673890856807,23.65,23.22,23.191,20.0]
[1673890857020,23.65,23.22,23.192,21.61444859]
[1673890857235,32.32,23.218,23.193,20.0]
[1673890857445,23.65,23.22,23.194,22.86355302]
[1673890857644,23.65,23.22,23.194,49.35]
[1673890857855,23.65,23.22,23.195,35.85589628]
[1673890858066,23.65,23.22,23.196,21.0764068]
[1673890858275,23.65,23.22,23.198,7.02440259]
[1673890858596,23.65,23.22,23.199,17.0]
[1673890858796,23.65,23.22,23.199,49.35]
[1673890859758,23.65,23.22,23.199,17.0]
[1673890859759,20.0,23.219,23.199,17.0]
[1673890859978,20.0,23.219,23.196,143.1516]
[1673890860187,20.0,23.217,23.196,110.8016]
[1673890860731,20.0,23.215,23.196,110.8016]
[1673890860921,23.65,23.21,23.189,15.85589628]
[1673890861132,20.0,23.208,23.187,20.0]
[1673890861668,32.33,23.207,23.187,20.0]
[1673890862079,20.0,23.207,23.187,20.0]
[1673890862616,32.34,23.206,23.187,20.0]
[1673890862833,47.08,23.2,23.161,7.16642313]
[1673890863147,23.65,23.2,23.158,119.3975]
[1673890863354,23.52,23.19,23.159,6.49071776]
[1673890863551,23.52,23.19,23.16,4.81515006]
[1673890863760,20.0,23.198,23.161,20.0]
[1673890864083,99.97350288,23.197,23.162,6.55978619]
[1673890864406,23.65,23.2,23.162,6.55978619]
[1673890864407,21.46196354,23.198,23.163,4.98141]
[1673890864611,21.46196354,23.196,23.165,20.0]
[1673890864824,32.35,23.199,23.167,5.90085217]
[1673890865044,23.65,23.19,23.168,17.0]
[1673890865359,23.65,23.19,23.168,32.39]
[1673890865566,23.65,23.19,23.167,32.39]
[1673890865777,23.65,23.19,23.168,27.9243915]
[1673890866286,23.65,23.19,23.17,20.0]
[1673890866492,45.11196354,23.19,23.17,20.0]
[1673890866700,23.65,23.19,23.172,20.0]
[1673890867034,23.65,23.19,23.171,32.38]
[1673890867035,45.11196354,23.19,23.171,32.38]
[1673890867361,23.65,23.18,23.166,114.8268]
[1673890868082,21.46196354,23.179,23.163,20.0]
[1673890868700,23.53,23.17,23.156,20.0]
[1673890868923,23.53,23.17,23.146,149.5981]
[1673890869124,44.99196354,23.17,23.146,149.5981]
[1673890869342,44.99196354,23.17,23.154,20.0]
[1673890873238,44.99196354,23.17,23.151,20.0]
[1673890873784,20.0,23.169,23.147,20.0]
[1673890874099,41.46196354,23.168,23.147,20.0]
[1673890874280,37.0,23.167,23.147,20.0]
[1673890874490,20.0,23.166,23.147,20.0]
[1673890874716,41.46196354,23.166,23.147,20.0]
[1673890874931,62.92392708,23.166,23.147,20.0]
[1673890875246,21.46196354,23.165,23.147,20.0]
[1673890875439,23.65,23.16,23.148,17.0]
[1673890875646,32.39,23.165,23.147,20.0]
[1673890875868,32.38,23.173,23.147,58.83692406]
[1673890876071,23.65,23.17,23.148,4.76104609]
[1673890876490,45.11196354,23.17,23.15,20.0]
[1673890876917,45.11196354,23.17,23.151,17.0]
[1673890877130,23.65,23.17,23.151,49.41]
[1673890877347,23.65,23.17,23.152,4.50305507]
[1673890877546,23.65,23.17,23.154,20.0]
[1673890877964,23.65,23.17,23.155,17.0]
[1673890878174,23.65,23.17,23.156,20.0]
[1673890878385,23.65,23.17,23.157,17.0]
[1673890878922,20.0,23.188,23.157,17.0]
[1673890878923,32.38,23.175,23.157,17.0]
[1673890879111,20.0,23.178,23.158,20.0]
[1673890879321,20.0,23.177,23.159,17.0]
[1673890879966,23.52,23.17,23.159,17.0]
[1673890881002,32.37,23.179,23.159,17.0]
[1673890881231,23.65,23.18,23.159,49.4]
[1673890881449,32.36,23.186,23.16,20.0]
[1673890881638,23.48,23.19,23.161,22.27417129]
[1673890881860,20.0,23.189,23.162,4.32307735]
[1673890882079,20.0,23.189,23.163,17.0]
[1673890882295,23.48,23.19,23.163,49.4]
[1673890882614,23.48,23.19,23.165,20.0]
[1673890882926,32.36,23.189,23.167,20.0]
[1673890883132,32.36,23.189,23.168,17.0]
[1673890883324,32.36,23.189,23.169,20.0]
[1673890883544,20.0,23.188,23.17,17.0]
[1673890883756,23.48,23.19,23.17,17.0]
[1673890883971,23.48,23.19,23.171,20.0]
[1673890884178,23.48,23.19,23.172,17.0]
[1673890884603,23.48,23.19,23.173,20.0]
[1673890884819,32.35,23.197,23.174,17.0]
[1673890885023,32.34,23.202,23.174,65.23589628]
[1673890885225,191.82034405,23.236,23.174,65.23589628]
[1673890885226,32.34,23.206,23.175,4.98919529]
[1673890885440,32.34,23.206,23.176,17.0]
[1673890885763,23.65,23.2,23.177,27.86940847]
[1673890885980,23.65,23.2,23.178,17.0]
[1673890886182,23.65,23.2,23.18,5.49947548]
[1673890886392,55.98,23.21,23.182,20.0]
[1673890886604,20.0,23.209,23.183,21.72106531]
[1673890886927,20.0,23.209,23.184,5.52254803]
[1673890887242,20.0,23.209,23.185,17.0]
[1673890887558,20.0,23.209,23.186,20.0]
[1673890887875,20.0,23.209,23.187,17.0]
[1673890888058,20.0,23.209,23.188,20.0]
[1673890888268,20.0,23.209,23.189,17.0]
[1673890888498,20.0,23.209,23.19,20.0]
[1673890888718,20.0,23.209,23.191,17.0]
[1673890889109,23.65,23.21,23.191,17.0]
[1673890889319,32.32,23.214,23.193,20.0]
[1673890889548,32.32,23.219,23.194,17.0]
[1673890889753,23.65,23.22,23.194,49.35]
[1673890890372,23.65,23.21,23.195,20.0]
[1673890890588,23.65,23.21,23.196,17.0]
[1673890891234,73.78196354,23.219,23.196,17.0]
[1673890891235,32.32,23.219,23.196,17.0]
[1673890891450,20.0,23.218,23.197,20.0]
[1673890891633,20.0,23.218,23.198,17.0]
[1673890892053,20.0,23.218,23.199,20.0]
[1673890892261,20.0,23.219,23.2,17.0]
[1673890892483,20.0,23.219,23.201,20.0]
[1673890892703,20.0,23.219,23.202,17.0]
[1673890893231,23.65,23.22,23.203,20.0]
[1673890893454,23.65,23.22,23.204,17.0]
[1673890893848,23.65,23.22,23.205,20.0]
[1673890894051,23.65,23.22,23.207,20.0]
[1673890894607,23.65,23.22,23.208,17.0]
[1673890894811,23.65,23.22,23.203,20.0]
[1673890895033,23.65,23.22,23.204,17.0]
[1673890895213,23.65,23.22,23.203,20.0]
[1673890895422,37.0,23.219,23.199,20.0]
[1673890895635,20.0,23.219,23.199,20.0]
[1673890895841,17.0,23.218,23.199,20.0]
[1673890896166,23.65,23.21,23.192,32.35]
[1673890896380,23.65,23.21,23.187,140.4924]
[1673890896594,23.65,23.21,23.189,32.36]
[1673890897105,23.65,23.21,23.191,32.36]
[1673890897310,32.32,23.215,23.192,20.0]
[1673890897545,20.0,23.217,23.195,6.95331969]
[1673890897747,20.0,23.219,23.196,17.0]
[1673890897946,20.0,23.219,23.196,49.35]
[1673890898157,20.0,23.219,23.198,20.0]
[1673890898379,20.0,23.219,23.199,17.0]
[1673890898592,20.0,23.219,23.199,32.35]
[1673890898792,20.0,23.219,23.198,20.0]
[1673890899003,23.65,23.21,23.192,138.4809]
[1673890899341,23.65,23.21,23.192,20.0]
[1673890900168,23.65,23.21,23.186,59.41795023]
[1673890900467,32.32,23.215,23.186,52.36]
[1673890900468,23.48,23.2,23.186,52.36]
[1673890900813,52.33,23.209,23.186,20.0]
[1673890901111,23.65,23.21,23.187,32.36]
[1673890901331,23.65,23.21,23.188,20.0]
[1673890901726,23.65,23.21,23.189,32.36]
[1673890901932,23.65,23.21,23.19,20.0]
[1673890902359,23.65,23.21,23.191,49.36]
[1673890902676,23.65,23.21,23.191,53.96325602]
[1673890903109,23.65,23.21,23.192,20.0]
[1673890903428,23.65,23.21,23.193,17.0]
[1673890905216,20.0,23.209,23.193,17.0]
[1673890905421,20.0,23.209,23.188,20.0]
[1673890905635,20.0,23.209,23.186,135.7299]
[1673890905636,23.52,23.2,23.186,115.7299]
[1673890906142,32.33,23.208,23.187,20.0]
[1673890906351,20.0,23.207,23.187,20.0]
[1673890906899,23.65,23.21,23.188,24.23646876]
[1673890907105,23.65,23.21,23.189,6.70012561]
[1673890907302,23.65,23.21,23.19,37.0]
[1673890907512,20.0,23.216,23.191,4.02157225]
[1673890908048,20.0,23.216,23.192,32.35]
[1673890908244,32.32,23.215,23.194,20.0]
[1673890908451,20.0,23.216,23.195,17.0]
[1673890908665,20.0,23.216,23.196,20.0]
[1673890908871,20.0,23.216,23.197,17.0]
[1673890909306,23.48,23.21,23.193,52.35]
[1673890909506,23.48,23.21,23.193,20.0]
[1673890909939,23.65,23.22,23.194,32.35]
[1673890910153,20.0,23.219,23.196,20.0]
[1673890910553,23.65,23.22,23.198,5.36625321]
[1673890910774,23.65,23.22,23.199,17.0]
[1673890911008,23.65,23.22,23.199,49.35]
[1673890911195,23.65,23.22,23.2,20.0]
[1673890911404,23.65,23.22,23.201,17.0]
[1673890911724,23.65,23.22,23.201,49.34]
[1673890911932,23.65,23.22,23.201,17.0]
[1673890912154,20.0,23.219,23.201,17.0]
[1673890912469,20.0,23.219,23.2,20.0]
[1673890912783,69.32,23.218,23.194,32.35]
[1673890912976,69.32,23.218,23.191,32.36]
[1673890913310,20.0,23.217,23.191,32.36]
[1673890913509,20.0,23.217,23.194,32.35]
[1673890913832,20.0,23.218,23.195,17.0]
[1673890914042,20.0,23.218,23.194,21.4855977]
[1673890914780,20.0,23.219,23.198,17.0]
[1673890914967,20.0,23.219,23.198,49.35]
[1673890915182,20.0,23.218,23.199,20.0]
[1673890915398,20.0,23.218,23.2,17.0]
[1673890915630,17.0,23.217,23.2,17.0]
[1673890915824,32.32,23.217,23.195,20.0]
[1673890916141,20.0,23.219,23.197,20.0]
[1673890916566,20.0,23.219,23.198,32.35]
[1673890916752,20.0,23.219,23.199,20.0]
[1673890916962,20.0,23.219,23.197,32.35]
[1673890917186,20.0,23.217,23.194,32.35]
[1673890917397,32.32,23.218,23.194,36.86097214]
[1673890917592,20.0,23.217,23.194,36.86097214]
[1673890917802,20.0,23.217,23.195,20.0]
[1673890918248,20.0,23.216,23.195,20.0]
[1673890918648,20.0,23.217,23.197,20.0]
[1673890918852,20.0,23.217,23.198,17.0]
[1673890919279,20.0,23.217,23.197,20.0]
[1673890919600,20.0,23.217,23.19,52.36]
[1673890919601,23.65,23.21,23.19,52.36]
[1673890920445,23.65,23.21,23.192,112.8445]
[1673890920964,20.0,23.209,23.192,112.8445]
[1673890921714,20.0,23.209,23.193,17.0]
[1673890922556,20.0,23.209,23.188,112.2396]
[1673890922754,69.33,23.208,23.188,112.2396]
[1673890923292,20.0,23.207,23.188,112.2396]
[1673890923700,20.0,23.207,23.189,20.0]
[1673890923903,20.0,23.207,23.19,17.0]
[1673890925171,32.33,23.208,23.19,17.0]
[1673890925364,23.65,23.21,23.19,17.0]
[1673890925574,23.65,23.21,23.191,32.36]
[1673890925789,23.65,23.21,23.193,20.0]
[1673890926017,23.65,23.21,23.194,17.0]
[1673890926351,23.65,23.21,23.19,32.36]
[1673890926528,20.0,23.208,23.186,20.0]
[1673890926859,20.0,23.208,23.189,20.0]
[1673890927069,20.0,23.209,23.189,20.0]
[1673890928125,20.0,23.209,23.19,17.0]
[1673890928434,20.0,23.209,23.191,20.0]
[1673890928650,20.0,23.209,23.192,17.0]
[1673890928845,20.0,23.209,23.193,20.0]
[1673890929053,20.0,23.209,23.194,17.0]
[1673890929269,20.0,23.209,23.195,20.0]
[1673890929473,20.0,23.209,23.194,17.0]
[1673890929990,20.0,23.209,23.192,17.0]
[1673890930201,23.65,23.21,23.192,17.0]
[1673890930631,32.33,23.213,23.192,17.0]
[1673890930846,20.0,23.215,23.193,20.0]
[1673890931059,20.0,23.215,23.194,17.0]
[1673890931271,32.32,23.214,23.194,17.0]
[1673890931486,23.52,23.21,23.195,20.0]
[1673890931675,23.52,23.21,23.196,17.0]
[1673890932104,23.52,23.21,23.194,17.0]
[1673890932312,20.0,23.209,23.194,17.0]
[1673890932856,23.52,23.21,23.194,17.0]
[1673890933054,20.0,23.209,23.194,17.0]
[1673890933261,32.32,23.214,23.194,17.0]
[1673890933478,32.32,23.218,23.194,24.18057085]
[1673890933701,20.0,23.217,23.195,20.0]
[1673890933999,20.0,23.217,23.197,20.0]
[1673890934318,20.0,23.217,23.199,20.0]
[1673890934557,20.0,23.217,23.2,17.0]
[1673890934745,20.0,23.217,23.2,32.60614189]
[1673890935089,20.0,23.217,23.191,20.0]
[1673890935090,23.65,23.21,23.191,20.0]
[1673890935397,23.65,23.21,23.194,17.0]
[1673890936646,23.65,23.21,23.192,113.7538]
[1673890936647,20.0,23.209,23.192,113.7538]
[1673890936859,72.33,23.209,23.192,113.7538]
[1673890937173,72.33,23.209,23.184,20.0]
[1673890937381,23.65,23.2,23.184,20.0]
[1673890938125,23.65,23.2,23.18,52.37]
[1673890938126,20.0,23.199,23.179,112.3787]
[1673890938336,23.65,23.19,23.179,112.3787]
[1673890938546,23.65,23.19,23.178,108.1268]
[1673890938862,23.65,23.19,23.172,32.38]
[1673890939073,23.65,23.19,23.171,160.5068]
[1673890939261,23.65,23.19,23.171,128.1268]
[1673890940222,20.0,23.188,23.172,20.0]
[1673890940435,20.0,23.187,23.172,20.0]
[1673890940958,32.35,23.198,23.172,35.85589628]
[1673890941274,23.65,23.2,23.174,26.65920562]
[1673890941488,23.65,23.2,23.175,21.45549913]
[1673890941672,23.65,23.2,23.176,5.54496282]
[1673890941899,23.65,23.2,23.178,20.0]
[1673890942109,23.65,23.2,23.18,20.0]
[1673890942322,23.65,23.2,23.181,17.0]
[1673890942529,32.33,23.208,23.181,23.35401801]
[1673890942738,20.0,23.207,23.184,20.0]
[1673890942935,20.0,23.207,23.185,22.32373661]
[1673890943148,20.0,23.206,23.186,20.0]
[1673890943373,52.34,23.206,23.187,17.0]
[1673890943793,23.65,23.2,23.187,17.0]
[1673890944207,23.65,23.2,23.185,17.0]
[1673890944648,32.34,23.206,23.186,60.69302461]
[1673890944834,20.0,23.207,23.188,24.08931053]
[1673890945045,20.0,23.207,23.189,17.0]
[1673890945250,32.33,23.212,23.189,22.5804705]
[1673890945466,32.32,23.217,23.19,48.21589628]
[1673890945678,32.32,23.219,23.191,24.58600104]
[1673890946010,32.32,23.219,23.193,6.22370304]
[1673890946198,23.65,23.22,23.194,17.0]
[1673890946412,23.65,23.22,23.195,4.32824781]
[1673890946623,32.32,23.219,23.196,37.0]
[1673890946954,32.32,23.22,23.198,20.0]
[1673890947269,32.31,23.226,23.199,61.61136799]
[1673890947461,32.3,23.228,23.2,6.77617364]
[1673890947670,20.0,23.227,23.203,5.04335116]
[1673890947894,20.0,23.227,23.204,17.0]
[1673890948107,32.3,23.228,23.205,27.66019233]
[1673890948317,20.0,23.227,23.206,17.0]
[1673890948529,32.3,23.228,23.207,20.0]
[1673890948740,32.3,23.228,23.209,20.0]
[1673890948946,32.3,23.228,23.21,17.0]
[1673890949165,32.3,23.228,23.211,20.0]
[1673890949411,32.3,23.229,23.212,17.0]
[1673890949689,20.0,23.236,23.213,20.0]
[1673890949899,20.0,23.236,23.209,20.0]
[1673890949900,23.65,23.23,23.209,20.0]
[1673890950088,20.0,23.229,23.206,20.0]
[1673890950308,21.46196354,23.235,23.21,28.65550273]
[1673890950517,32.29,23.237,23.211,6.31146074]
[1673890950735,20.0,23.233,23.208,26.57905741]
[1673890951156,32.3,23.232,23.208,26.57905741]
[1673890951346,32.3,23.232,23.209,17.0]
[1673890951562,32.3,23.232,23.209,23.39865637]
[1673890951773,32.29,23.238,23.211,4.7150925]
[1673890952106,20.0,23.236,23.213,20.0]
[1673890952309,20.0,23.236,23.213,27.69545947]
[1673890952522,32.29,23.235,23.215,20.0]
[1673890952733,32.29,23.235,23.216,17.0]
[1673890954848,32.29,23.242,23.217,32.32]
[1673890955154,32.28,23.245,23.218,21.20093643]
[1673890955372,32.28,23.249,23.218,37.06493599]
[1673890955558,32.28,23.249,23.22,5.71340567]
[1673890955768,20.0,23.248,23.221,37.0]
[1673890955979,20.0,23.248,23.222,4.15546427]
[1673890956300,20.0,23.248,23.224,20.0]
[1673890956301,20.0,23.246,23.224,20.0]
[1673890956516,32.28,23.247,23.225,17.0]
[1673890956737,32.28,23.247,23.227,4.36081378]
[1673890956953,32.27,23.253,23.228,17.0]
[1673890957158,32.27,23.255,23.228,49.3]
[1673890957347,32.27,23.252,23.229,20.0]
[1673890957554,52.27,23.254,23.231,20.0]
[1673890957769,32.27,23.255,23.232,5.18295827]
[1673890958090,23.53,23.26,23.234,20.0]
[1673890958297,52.26,23.259,23.234,20.0]
[1673890958514,52.26,23.259,23.235,17.0]
[1673890958723,52.26,23.259,23.236,20.0]
[1673890959042,52.26,23.259,23.237,17.0]
[1673890959256,52.26,23.259,23.238,20.0]
[1673890959504,52.26,23.259,23.239,17.0]
[1673890959876,20.0,23.258,23.239,17.0]
[1673890960074,20.0,23.257,23.236,20.0]
[1673890960288,52.26,23.257,23.236,20.0]
[1673890960498,20.0,23.257,23.236,20.0]
[1673890960824,20.0,23.258,23.236,20.0]
[1673890961040,32.27,23.256,23.234,20.0]
[1673890961239,20.0,23.254,23.234,20.0]
[1673890961655,20.0,23.254,23.231,117.2373]
[1673890961656,23.65,23.25,23.231,117.2373]
[1673890961872,22.65,23.25,23.231,117.2373]
[1673890962193,23.65,23.25,23.232,20.0]
[1673890962811,32.26,23.258,23.233,7.62478908]
[1673890963034,32.26,23.258,23.234,20.0]
[1673890963245,32.26,23.258,23.235,17.0]
[1673890963562,20.0,23.257,23.236,20.0]
[1673890963777,17.0,23.256,23.236,20.0]
[1673890963985,20.0,23.255,23.236,20.0]
[1673890964294,32.27,23.256,23.236,20.0]
[1673890964529,20.0,23.255,23.236,20.0]
[1673890964720,20.0,23.259,23.237,17.0]
[1673890964920,20.0,23.257,23.236,20.0]
[1673890965122,20.0,23.257,23.226,40.19717086]
[1673890965123,23.65,23.25,23.226,40.19717086]
[1673890965328,5.00074,23.256,23.226,40.19717086]
[1673890965329,23.65,23.24,23.226,40.19717086]
[1673890965547,23.65,23.24,23.219,110.5079]
[1673890965749,52.29,23.239,23.22,20.0]
[1673890965965,52.29,23.239,23.219,110.5079]
[1673890966296,52.29,23.239,23.215,20.0]
[1673890966510,20.0,23.237,23.212,109.0226]
[1673890966822,52.29,23.239,23.212,109.0226]
[1673890967017,52.29,23.239,23.214,6.76569595]
[1673890967225,52.29,23.239,23.214,39.08569595]
[1673890967449,52.29,23.239,23.215,20.0]
[1673890968075,52.29,23.239,23.216,17.0]
[1673890968297,52.29,23.239,23.215,20.0]
[1673890968507,20.0,23.237,23.215,20.0]
[1673890968729,17.0,23.236,23.215,20.0]
[1673890968931,23.52,23.23,23.215,20.0]
[1673890969126,23.52,23.23,23.208,20.0]
[1673890969333,23.52,23.23,23.206,20.0]
[1673890969334,69.3,23.229,23.206,130.4343]
[1673890969547,20.0,23.228,23.206,130.4343]
[1673890970094,32.31,23.227,23.206,130.4343]
[1673890971021,32.3,23.228,23.206,130.4343]
[1673890971233,23.52,23.23,23.207,20.68626654]
[1673890971449,32.29,23.238,23.208,20.0]
[1673890971654,32.29,23.236,23.208,68.19399956]
[1673890971872,23.65,23.23,23.208,20.0]
[1673890972094,20.0,23.228,23.209,17.0]
[1673890972701,32.31,23.227,23.208,20.0]
[1673890973545,32.3,23.229,23.208,20.0]
[1673890973867,32.29,23.236,23.209,4.96644286]
[1673890974084,32.29,23.238,23.21,4.37862216]
[1673890974290,32.29,23.238,23.21,20.24262172]
[1673890974505,32.29,23.238,23.213,5.57928207]
[1673890974819,52.28,23.245,23.213,5.57928207]
[1673890975034,52.29,23.239,23.214,49.32]
[1673890975231,20.0,23.238,23.215,20.0]
[1673890976610,32.29,23.237,23.215,20.0]
[1673890976799,20.0,23.236,23.215,20.0]
[1673890977225,32.29,23.235,23.216,17.0]
[1673890978077,52.29,23.239,23.216,49.32]
[1673890978293,20.0,23.239,23.217,20.0]
[1673890978481,20.0,23.239,23.218,17.0]
[1673890978899,20.0,23.239,23.219,20.0]
[1673890979109,20.0,23.239,23.221,20.0]
[1673890979342,20.0,23.239,23.222,17.0]
[1673890979567,52.29,23.239,23.222,17.0]
[1673890979762,20.0,23.239,23.222,17.0]
[1673890980165,32.29,23.238,23.218,112.2215]
[1673890980382,32.29,23.238,23.213,20.0]
[1673890980383,20.0,23.236,23.213,20.0]
[1673890980600,17.0,23.235,23.213,20.0]